Workbook

Sheet Auto Loan Amortization Schedule
B1: AUTO LOAN AMORTIZATION SCHEDULE TEMPLATE
B3: LENDER NAME | H3: PURCHASE PRICE | J3: VALUE
B4: LENDER ADDRESS | H4: SALE PRICE + OPTIONS | J4: 40000
H5: DESTINATION CHARGE | J5: 35
H6: TITLE TRANSFER FEE | J6: 35
B7: LENDER PHONE | H7: OTHER TAXABLE FEES | J7: 600
B8: LENDER WEB | D8: www. | H8: TOTAL PURCHASE PRICE | J8: =SUM(J4:J7) -> 40670
B9: CONTACT EMAIL
B10: LOAN TYPE | H10: STATE SALES TAX | J10: VALUE
B11: DATE OF LOAN | H11: TRADE-IN TAX DEDUCTION (if applicable) | J11: FALSE
B12: NAME ON LOAN | H12: CASH REBATE TAX DEDUCTION (if applicable) | J12: FALSE
H13: INPUT STATE SALES TAX RATE | J13: 0.0635
C14: DATA | E14: VALUE | H14: FILL IN NET TAXABLE | J14: =4500 -> 4500
C15: INPUT | G15: FREQUENCY | H15: STATE SALES / EXCISE TAX | J15: =J13*J14 -> 285.75
C16: PURCHASE PRICE + FEES | E16: =J8+J15+J27 -> 41005.75 | G16: Annually
C17: PERCENT OF DOWN PAYMENT | E17: 0.05 | G17: Semi-Annually | H17: NON-TAXABLE FEES | J17: VALUE
C18: TOTAL DOWN PAYMENT | E18: =E17*E16 -> 2050.2875 | G18: Quarterly | H18: REGISTRATION | J18: 10
C19: LOAN AMOUNT | E19: =E16-E18 -> 38955.4625 | G19: Bi-Monthly | H19: LATE REGISTRATION FEE | J19: 5
C20: ANNUAL INTEREST RATE | E20: 0.045 | G20: Monthly | H20: SERVICE CONTRACT | J20: 5
C21: LENGTH OF LOAN IN YEARS | E21: 4 | G21: Semi-Monthly | H21: SPECIAL PLATE FEE | J21: 5
C22: PAYMENT FREQUENCY | E22: Monthly | G22: Bi-Weekly | H22: ADMINISTRATION FEE | J22: 5
C23: FIRST PAYMENT DATE | E23: 2018-05-01 | H23: TRANSACTION FEE | J23: 5
H24: LATE TITLE TRANSFER FEE | J24: 5
C25: CALCULATED OUTPUT | H25: DUPLICATE TITLE FEE | J25: 5
C26: NUMBER OF PAYMENTS | E26: =H32 -> 48 | H26: OTHER NON-TAXABLE FEES | J26: 5
C27: MONTHLY INTEREST RATE | E27: =E20/H31 -> 0.00375 | H27: TOTAL NON-TAXABLE FEES | J27: =SUM(J18:J26) -> 50
C28: MONTHLY PAYMENT | E28: =ROUND(-PMT(E27,H32,E19),2) -> 888.32
C29: TOTAL INTEREST | E29: =E30-E19 -> 3683.914144 | H29: ***Complete All WHITE fields under VALUE Headings Only***
C30: TOTAL PAYMENTS | E30: =E26*(-PMT(E27,H32,E19)) -> 42639.37664
G31: PERIODS PER YEAR | H31: =INDEX({1;2;4;6;12;24;26},MATCH($E$22,$G$16:$G$22,0)) -> 12
G32: NUMBER OF PERIODS | H32: =E21*H31 -> 48
G33: Periods per month | H33: =12/H31 -> 1
B35: AUTO LOAN AMORTIZATION SCHEDULE
B36: PYMNT PERIOD | C36: DATE OF PAYMENT | D36: BEGINNING BALANCE | E36: SCHEDULED PAYMENT | F36: EXTRA PAYMENT | G36: ADDITIONAL PAYMENT | H36: INTEREST | I36: PRINCIPAL | J36: BALANCE
J37: =E19 -> 38955.4625
B38: =IF(J37="","",IF(OR(B37>=$H$32,ROUND(J37,2)<=0),"",B37+1)) -> 1 | C38: =E23 -> 2018-05-01 | D38: =J37 -> 38955.4625 | E38: =IF(B38="","",IF(OR(B38=$H$32,$E$28>ROUND((1+$E$27)*J37,2)),ROUND((1+$E$27)*J37,2),$E$28)) -> 888.32 | H38: =IF(B38="","",ROUND($E$27*J37,2)) -> 146.08 | I38: =IF(B38="","",E38+F38-H38) -> 742.24 | J38: =IF(B38="","",J37-I38) -> 38213.2225
B39: 2 | C39: =IF(B39="","",IF($H$31=26,IF(B39=1,$E$23,C38+14),IF($H$31=52,IF(B39=1,$E$23,C38+7),DATE(YEAR($E$23),MONTH($E$23)+(B39-1)*$H$33,IF($H$31=24,IF((1-MOD(B39,2))=1,DAY($E$23)+14,DAY($E$23)),DAY($E$23)))))) -> 2018-06-01 | D39: =IF(ISERROR(IF((ROUND(J38,1)>0),J38,"")),"",(IF((ROUND(J38,1)>0),J38,""))) -> 38213.2225 | E39: 888.32 | H39: 143.3 | I39: 745.02 | J39: 37468.2025
B40: 3 | C40: 2018-07-01 | D40: 37468.2025 | E40: 888.32 | H40: 140.51 | I40: 747.81 | J40: 36720.3925
B41: 4 | C41: 2018-08-01 | D41: 36720.3925 | E41: 888.32 | H41: 137.7 | I41: 750.62 | J41: 35969.7725
B42: 5 | C42: 2018-09-01 | D42: 35969.7725 | E42: 888.32 | H42: 134.89 | I42: 753.43 | J42: 35216.3425
B43: 6 | C43: 2018-10-01 | D43: 35216.3425 | E43: 888.32 | H43: 132.06 | I43: 756.26 | J43: 34460.0825
B44: 7 | C44: 2018-11-01 | D44: 34460.0825 | E44: 888.32 | H44: 129.23 | I44: 759.09 | J44: 33700.9925
B45: 8 | C45: 2018-12-01 | D45: 33700.9925 | E45: 888.32 | H45: 126.38 | I45: 761.94 | J45: 32939.0525
B46: 9 | C46: 2019-01-01 | D46: 32939.0525 | E46: 888.32 | H46: 123.52 | I46: 764.8 | J46: 32174.2525
B47: 10 | C47: 2019-02-01 | D47: 32174.2525 | E47: 888.32 | H47: 120.65 | I47: 767.67 | J47: 31406.5825
B48: 11 | C48: 2019-03-01 | D48: 31406.5825 | E48: 888.32 | H48: 117.77 | I48: 770.55 | J48: 30636.0325
B49: 12 | C49: 2019-04-01 | D49: 30636.0325 | E49: 888.32 | H49: 114.89 | I49: 773.43 | J49: 29862.6025
B50: 13 | C50: 2019-05-01 | D50: 29862.6025 | E50: 888.32 | H50: 111.98 | I50: 776.34 | J50: 29086.2625
B51: 14 | C51: 2019-06-01 | D51: 29086.2625 | E51: 888.32 | H51: 109.07 | I51: 779.25 | J51: 28307.0125
B52: 15 | C52: 2019-07-01 | D52: 28307.0125 | E52: 888.32 | H52: 106.15 | I52: 782.17 | J52: 27524.8425
B53: 16 | C53: 2019-08-01 | D53: 27524.8425 | E53: 888.32 | H53: 103.22 | I53: 785.1 | J53: 26739.7425
B54: 17 | C54: 2019-09-01 | D54: 26739.7425 | E54: 888.32 | H54: 100.27 | I54: 788.05 | J54: 25951.6925
B55: 18 | C55: 2019-10-01 | D55: 25951.6925 | E55: 888.32 | H55: 97.32 | I55: 791 | J55: 25160.6925
B56: 19 | C56: 2019-11-01 | D56: 25160.6925 | E56: 888.32 | H56: 94.35 | I56: 793.97 | J56: 24366.7225
B57: 20 | C57: 2019-12-01 | D57: 24366.7225 | E57: 888.32 | H57: 91.38 | I57: 796.94 | J57: 23569.7825
B58: 21 | C58: 2020-01-01 | D58: 23569.7825 | E58: 888.32 | H58: 88.39 | I58: 799.93 | J58: 22769.8525
B59: 22 | C59: 2020-02-01 | D59: 22769.8525 | E59: 888.32 | H59: 85.39 | I59: 802.93 | J59: 21966.9225
B60: 23 | C60: 2020-03-01 | D60: 21966.9225 | E60: 888.32 | H60: 82.38 | I60: 805.94 | J60: 21160.9825
B61: 24 | C61: 2020-04-01 | D61: 21160.9825 | E61: 888.32 | H61: 79.35 | I61: 808.97 | J61: 20352.0125
B62: 25 | C62: 2020-05-01 | D62: 20352.0125 | E62: 888.32 | H62: 76.32 | I62: 812 | J62: 19540.0125
B63: 26 | C63: 2020-06-01 | D63: 19540.0125 | E63: 888.32 | H63: 73.28 | I63: 815.04 | J63: 18724.9725
B64: 27 | C64: 2020-07-01 | D64: 18724.9725 | E64: 888.32 | H64: 70.22 | I64: 818.1 | J64: 17906.8725
B65: 28 | C65: 2020-08-01 | D65: 17906.8725 | E65: 888.32 | H65: 67.15 | I65: 821.17 | J65: 17085.7025
B66: 29 | C66: 2020-09-01 | D66: 17085.7025 | E66: 888.32 | H66: 64.07 | I66: 824.25 | J66: 16261.4525
B67: 30 | C67: 2020-10-01 | D67: 16261.4525 | E67: 888.32 | H67: 60.98 | I67: 827.34 | J67: 15434.1125
B68: 31 | C68: 2020-11-01 | D68: 15434.1125 | E68: 888.32 | H68: 57.88 | I68: 830.44 | J68: 14603.6725
B69: 32 | C69: 2020-12-01 | D69: 14603.6725 | E69: 888.32 | H69: 54.76 | I69: 833.56 | J69: 13770.1125
B70: 33 | C70: 2021-01-01 | D70: 13770.1125 | E70: 888.32 | H70: 51.64 | I70: 836.68 | J70: 12933.4325
B71: 34 | C71: 2021-02-01 | D71: 12933.4325 | E71: 888.32 | H71: 48.5 | I71: 839.82 | J71: 12093.6125
B72: 35 | C72: 2021-03-01 | D72: 12093.6125 | E72: 888.32 | H72: 45.35 | I72: 842.97 | J72: 11250.6425
B73: 36 | C73: 2021-04-01 | D73: 11250.6425 | E73: 888.32 | H73: 42.19 | I73: 846.13 | J73: 10404.5125
B74: 37 | C74: 2021-05-01 | D74: 10404.5125 | E74: 888.32 | H74: 39.02 | I74: 849.3 | J74: 9555.2125
B75: 38 | C75: 2021-06-01 | D75: 9555.2125 | E75: 888.32 | H75: 35.83 | I75: 852.49 | J75: 8702.7225
B76: 39 | C76: 2021-07-01 | D76: 8702.7225 | E76: 888.32 | H76: 32.64 | I76: 855.68 | J76: 7847.0425
B77: 40 | C77: 2021-08-01 | D77: 7847.0425 | E77: 888.32 | H77: 29.43 | I77: 858.89 | J77: 6988.1525
B78: 41 | C78: 2021-09-01 | D78: 6988.1525 | E78: 888.32 | H78: 26.21 | I78: 862.11 | J78: 6126.0425
B79: 42 | C79: 2021-10-01 | D79: 6126.0425 | E79: 888.32 | H79: 22.97 | I79: 865.35 | J79: 5260.6925
B80: 43 | C80: 2021-11-01 | D80: 5260.6925 | E80: 888.32 | H80: 19.73 | I80: 868.59 | J80: 4392.1025
B81: 44 | C81: 2021-12-01 | D81: 4392.1025 | E81: 888.32 | H81: 16.47 | I81: 871.85 | J81: 3520.2525
B82: 45 | C82: 2022-01-01 | D82: 3520.2525 | E82: 888.32 | H82: 13.2 | I82: 875.12 | J82: 2645.1325
B83: 46 | C83: 2022-02-01 | D83: 2645.1325 | E83: 888.32 | H83: 9.92 | I83: 878.4 | J83: 1766.7325
B84: 47 | C84: 2022-03-01 | D84: 1766.7325 | E84: 888.32 | H84: 6.63 | I84: 881.69 | J84: 885.0425
B85: 48 | C85: 2022-04-01 | D85: 885.0425 | E85: 888.36 | H85: 3.32 | I85: 885.04 | J85: 0.002500000008
B88: CLICK HERE TO CREATE AUTO LOAN AMORTIZATION SCHEDULE TEMPLATES IN SMARTSHEET | N88: `
